{"text_format":"3","workbook":"xlsx","n_sheets":2,"sheets":["Начало","Прибыльность клиентов"],"not_rendered":{"charts":1},"read":"whole","date_system":"1900"}

{"sheet":"Начало","index":0,"n_rows":7,"n_cols":2,"rows_kept":7}
[null,"ОБ ЭТОМ ШАБЛОНЕ"]
[null,"Используйте этот Анализ прибыльности клиентов, чтобы отслеживать Активность клиентов, Себестоимость продаж и Другие расходы."]
[null,"Укажите в этих таблицах Название компании, Дата и другие данные."]
[null,"Значения в ячейках, содержащих формулы, и таблице «Сводные показатели» рассчитываются автоматически. Соответственно обновляется диаграмма."]
[null,"Примечание  "]
[null,"В столбце A листа «ПРИБЫЛЬНОСТЬ КЛИЕНТОВ» содержатся дополнительные инструкции. Их текст намерено скрыт. Чтобы удалить этот текст, выделите столбец A и нажмите клавишу DELETE. Чтобы отобразить текст, выделите столбец A и измените цвет шрифта."]
[null,"Чтобы получить дополнительные сведения о таблице на листе, щелкните в ней ячейку, нажмите клавиши SHIFT+F10 и выберите пункт «Таблица», а затем — «Замещающий текст»."]

{"sheet":"Прибыльность клиентов","index":1,"n_rows":37,"n_cols":6,"rows_kept":37,"merged":[[36,1,36,5]]}
["Создайте Анализ прибыльности клиентов на этом листе. В ячейках этого столбца содержатся полезные инструкции о том, как использовать этот лист. Нажмите клавишу СТРЕЛКА ВНИЗ, чтобы начать."]
["Введите Название компании в ячейке справа.","Название компании"]
["Ячейка справа содержит название листа.","Анализ прибыльности клиентов"]
["Введите Дата в ячейке справа.","Дата"]
["Совет представлен в ячейке справа.","Значения в серых ячейках рассчитываются автоматически. В них не нужно вводить данные."]
["Введите данные в таблице «Активность клиентов», начиная с ячейки справа. Дальнейшие инструкции указаны в ячейке A12.","Активность клиентов:","Название сегмента 1","Название сегмента 2","Название сегмента 3","Всего"]
[null,"Количество активных клиентов — на начало периода",5,8,8,{"$f":"SUM(C7:E7)","v":21}]
[null,"Количество новых клиентов",2,4,4,{"$f":"SUM(C8:E8)","v":10}]
[null,"Количество потерянных клиентов",{"v":-1,"d":"-1 "},{"v":-2,"d":"-2 "},{"v":-2,"d":"-2 "},{"$f":"SUM(C9:E9)","v":{"v":-5,"d":"-5 "}}]
[null,"Количество активных клиентов — на конец периода",{"$f":"SUBTOTAL(109,АктивностьКлиентов[Название сегмента 1])","v":6},{"$f":"SUBTOTAL(109,АктивностьКлиентов[Название сегмента 2])","v":10},{"$f":"SUBTOTAL(109,АктивностьКлиентов[Название сегмента 3])","v":10},{"$f":"SUBTOTAL(109,АктивностьКлиентов[Всего])","v":26}]
[]
["Введите данные в таблице «Анализ прибыльности», начиная с ячейки справа. Дальнейшие инструкции указаны в ячейке A16.","Анализ прибыльности:","Название сегмента 1","Название сегмента 2","Название сегмента 3","Всего"]
[null,"Доход на сегмент",{"v":1500000,"d":"1,500,000.00 ₽"},{"v":1800000,"d":"1,800,000.00 ₽"},{"v":2500000,"d":"2,500,000.00 ₽"},{"$f":"SUM(АнализПрибыльности[[#This Row],[Название сегмента 1]:[Название сегмента 3]])","v":{"v":5800000,"d":"5,800,000.00 ₽"}}]
[null,"Весовой коэффициент",{"$f":"+C13/$F$13","v":{"v":0.25862068965517243,"d":"26%"}},{"$f":"+D13/$F$13","v":{"v":0.3103448275862069,"d":"31%"}},{"$f":"+E13/$F$13","v":{"v":0.43103448275862066,"d":"43%"}},{"$f":"SUM(АнализПрибыльности[[#This Row],[Название сегмента 1]:[Название сегмента 3]])","v":{"v":1,"d":"100%"}}]
[]
["Введите данные в таблице «Себестоимость продаж», начиная с ячейки справа. Дальнейшие инструкции указаны в ячейке A23.","Себестоимость продаж:","Название сегмента 1","Название сегмента 2","Название сегмента 3","Всего"]
[null,"Текущие расходы на обслуживание и поддержку",{"v":1000000,"d":"1,000,000.00 ₽"},{"v":1400000,"d":"1,400,000.00 ₽"},{"v":1400000,"d":"1,400,000.00 ₽"},{"$f":"SUM(C17:E17)","v":{"v":3800000,"d":"3,800,000.00 ₽"}}]
[null,"Другие прямые расходы на клиентов",{"v":200000,"d":"200,000.00 ₽"},{"v":100000,"d":"100,000.00 ₽"},{"v":100000,"d":"100,000.00 ₽"},{"$f":"SUM(C18:E18)","v":{"v":400000,"d":"400,000.00 ₽"}}]
[null,"Общая себестоимость продаж",{"$f":"SUM(C17:C18)","v":{"v":1200000,"d":"1,200,000.00 ₽"}},{"$f":"SUM(D17:D18)","v":{"v":1500000,"d":"1,500,000.00 ₽"}},{"$f":"SUM(E17:E18)","v":{"v":1500000,"d":"1,500,000.00 ₽"}},{"$f":"SUM(F17:F18)","v":{"v":4200000,"d":"4,200,000.00 ₽"}}]
[null,"Валовая прибыль",{"$f":"+C13-C19","v":{"v":300000,"d":"300,000.00 ₽"}},{"$f":"+D13-D19","v":{"v":300000,"d":"300,000.00 ₽"}},{"$f":"+E13-E19","v":{"v":1000000,"d":"1,000,000.00 ₽"}},{"$f":"+F13-F19","v":{"v":1600000,"d":"1,600,000.00 ₽"}}]
[null,"Весовой коэффициент",{"$f":"MAX(0, MIN(1,C20/$F$20))","v":{"v":0.1875,"d":"19%"}},{"$f":"MAX(0, MIN(1,D20/$F$20))","v":{"v":0.1875,"d":"19%"}},{"$f":"MAX(0, MIN(1,E20/$F$20))","v":{"v":0.625,"d":"63%"}},{"$f":"SUM(C21:E21)","v":{"v":1,"d":"100%"}}]
[]
["Введите данные в таблице «Другие расходы», начиная с ячейки справа. Дальнейшие инструкции указаны в ячейке A31.","Другие расходы:","Название сегмента 1","Название сегмента 2","Название сегмента 3","Всего"]
[null,"Привлечение клиентов",{"v":105000,"d":"105,000.00 ₽"},{"v":120000,"d":"120,000.00 ₽"},{"v":235000,"d":"235,000.00 ₽"},{"$f":"SUM(ДругиеРасходы[[#This Row],[Название сегмента 1]:[Название сегмента 3]])","v":{"v":460000,"d":"460,000.00 ₽"}}]
[null,"Потребительский маркетинг",{"v":150000,"d":"150,000.00 ₽"},{"v":125000,"d":"125,000.00 ₽"},{"v":275000,"d":"275,000.00 ₽"},{"$f":"SUM(C25:E25)","v":{"v":550000,"d":"550,000.00 ₽"}}]
[null,"Прекращение работы с клиентами",{"v":80000,"d":"80,000.00 ₽"},{"v":190000,"d":"190,000.00 ₽"},{"v":140000,"d":"140,000.00 ₽"},{"$f":"SUM(C26:E26)","v":{"v":410000,"d":"410,000.00 ₽"}}]
[null,"Общая сумма других расходов на клиентов",{"$f":"SUM(C24:C26)","v":{"v":335000,"d":"335,000.00 ₽"}},{"$f":"SUM(D24:D26)","v":{"v":435000,"d":"435,000.00 ₽"}},{"$f":"SUM(E24:E26)","v":{"v":650000,"d":"650,000.00 ₽"}},{"$f":"SUM(F24:F26)","v":{"v":1420000,"d":"1,420,000.00 ₽"}}]
[null,"Прибыль от клиентов по сегментам",{"$f":"+C20-C27","v":{"v":-35000,"d":"-35,000.00 ₽"}},{"$f":"+D20-D27","v":{"v":-135000,"d":"-135,000.00 ₽"}},{"$f":"+E20-E27","v":{"v":350000,"d":"350,000.00 ₽"}},{"$f":"SUM(C28:E28)","v":{"v":180000,"d":"180,000.00 ₽"}}]
[null,"Весовой коэффициент",{"$f":"MAX(0,MIN(1, C28/$F$28))","v":{"v":0,"d":"0%"}},{"$f":"MAX(0,MIN(1, D28/$F$28))","v":{"v":0,"d":"0%"}},{"$f":"MAX(0,MIN(1, E28/$F$28))","v":{"v":1,"d":"100%"}},{"$f":"SUM(C29:E29)","v":{"v":1,"d":"100%"}}]
[]
["Сведения в таблице «Сводные показатели», начиная с ячейки справа, обновляются автоматически. Дальнейшие инструкции указаны в ячейке A37.","Сводные показатели:","Название сегмента 1","Название сегмента 2","Название сегмента 3","Тренд"]
[null,"Средние расходы на нового клиента",{"$f":"+C24/C8","v":{"v":52500,"d":"52,500.00 ₽"}},{"$f":"+D24/D8","v":{"v":30000,"d":"30,000.00 ₽"}},{"$f":"+E24/E8","v":{"v":58750,"d":"58,750.00 ₽"}}]
[null,"Средние расходы на клиента, с которым прекращена работа",{"$f":"-C26/C9","v":{"v":80000,"d":"80,000.00 ₽"}},{"$f":"-D26/D9","v":{"v":95000,"d":"95,000.00 ₽"}},{"$f":"-E26/E9","v":{"v":70000,"d":"70,000.00 ₽"}}]
[null,"Средние маркетинговые расходы на активного клиента",{"$f":"+C26/АктивностьКлиентов[[#Totals],[Название сегмента 1]]","v":{"v":13333.333333333334,"d":"13,333.33 ₽"}},{"$f":"+D25/АктивностьКлиентов[[#Totals],[Название сегмента 2]]","v":{"v":12500,"d":"12,500.00 ₽"}},{"$f":"+E25/АктивностьКлиентов[[#Totals],[Название сегмента 3]]","v":{"v":27500,"d":"27,500.00 ₽"}}]
[null,"Средняя прибыль (убытки) на клиента",{"$f":"+C29/АктивностьКлиентов[[#Totals],[Название сегмента 1]]","v":{"v":0,"d":"0.00 ₽"}},{"$f":"+D28/АктивностьКлиентов[[#Totals],[Название сегмента 2]]","v":{"v":-13500,"d":"-13,500.00 ₽"}},{"$f":"+E28/АктивностьКлиентов[[#Totals],[Название сегмента 3]]","v":{"v":35000,"d":"35,000.00 ₽"}}]
[]
["Гистограмма с группировкой, где отображаются сводные показатели по сегментам клиентов, представлена в ячейке справа.","В этой ячейке представлена гистограмма с группировкой, где отображаются сводные показатели по сегментам клиентов."]